bitfinex/quotes_BTCUSD_20250812
["timestamp","ask_amount","ask_price","bid_price","bid_amount"]
[1754961345939,1.09969627,118910.0,118900.0,0.0004]
[1754961346145,0.59003865,118910.0,118900.0,0.0004]
[1754961346384,1.09969627,118910.0,118900.0,0.0004]
[1754961346581,1.09969602,118910.0,118900.0,0.0004]
[1754961346823,1.10069602,118910.0,118900.0,0.0004]
[1754961347236,0.95921602,118910.0,118900.0,0.00244]
[1754961347456,0.99040738,118910.0,118900.0,0.00568]
[1754961347666,0.99140738,118910.0,118900.0,0.00568]
[1754961348065,0.84911517,118910.0,118900.0,0.00568]
[1754961348268,0.99144657,118910.0,118900.0,0.00568]
[1754961348463,0.48178895,118910.0,118900.0,0.00568]
[1754961348685,0.99144657,118910.0,118900.0,0.00568]
[1754961349640,1.073931,118910.0,118900.0,0.00568]
[1754961349988,1.519931,118910.0,118900.0,0.00568]
[1754961350182,1.40723225,118910.0,118900.0,0.00568]
[1754961350400,1.40134085,118910.0,118900.0,0.00568]
[1754961350803,0.89168323,118910.0,118900.0,0.00568]
[1754961351028,0.8690623,118910.0,118900.0,0.00568]
[1754961351389,0.71694974,118910.0,118900.0,0.00568]
[1754961351595,0.85334974,118910.0,118900.0,0.00568]
[1754961356424,0.83531768,118910.0,118900.0,0.00568]
[1754961357585,0.53072325,118910.0,118900.0,0.17388857]
[1754961357768,0.002,118910.0,118900.0,0.19693857]
[1754961357977,0.13832,118910.0,118900.0,0.79426476]
[1754961358418,0.13832,118910.0,118900.0,0.19693857]
[1754961358739,0.13732,118910.0,118900.0,0.19693857]
[1754961358947,0.13732,118910.0,118900.0,0.19893857]
[1754961359390,0.13632,118910.0,118900.0,0.19893857]
[1754961359596,0.13632,118910.0,118900.0,0.27693857]
[1754961359798,0.13632,118910.0,118900.0,0.27993857]
[1754961360224,0.13632,118910.0,118900.0,0.28393857]
[1754961362390,0.37853444,118930.0,118920.0,0.16818028]
[1754961362595,0.46125769,118930.0,118920.0,0.17346028]
[1754961362815,0.59749769,118930.0,118920.0,0.17346028]
[1754961363228,0.59749769,118930.0,118920.0,0.00528]
[1754961363879,0.59749769,118930.0,118920.0,0.00728]
[1754961364078,0.59952769,118930.0,118920.0,0.00728]
[1754961364291,0.59952769,118930.0,118920.0,0.00828]
[1754961366072,0.59952769,118930.0,118920.0,0.00504]
[1754961366713,0.60253769,118930.0,118920.0,0.00504]
[1754961370960,0.59952769,118930.0,118920.0,0.00504]
[1754961371777,0.60272769,118930.0,118920.0,0.00504]
[1754961373241,1.11222083,118930.0,118920.0,0.00504]
[1754961374498,0.60272769,118930.0,118920.0,0.00504]
[1754961374709,0.40076769,118930.0,118920.0,0.00504]
[1754961375032,0.40076769,118930.0,118920.0,0.003]
[1754961376168,0.91026083,118930.0,118920.0,0.003]
[1754961377445,0.08475325,118930.0,118920.0,0.17320028]
[1754961377601,0.21880325,118930.0,118920.0,0.17632028]
[1754961378388,0.38696939,118930.0,118920.0,0.17632028]
[1754961378591,0.38899939,118930.0,118920.0,0.17632028]
[1754961379105,0.38899939,118930.0,118920.0,0.17320028]
[1754961379751,0.21880325,118930.0,118920.0,0.17320028]
[1754961379956,0.21880325,118930.0,118920.0,0.17632028]
[1754961380354,0.446,118940.0,118930.0,0.16816614]
[1754961380662,0.66476325,118940.0,118930.0,0.17330614]
[1754961380864,0.83291525,118940.0,118930.0,0.17330614]
[1754961382024,0.69687525,118940.0,118930.0,0.17330614]
[1754961382212,0.83287525,118940.0,118930.0,0.17330614]
[1754961382519,0.83490525,118940.0,118930.0,0.17330614]
[1754961383326,0.83490525,118940.0,118930.0,0.17018614]
[1754961383643,0.83810525,118940.0,118930.0,0.17118614]
[1754961383850,0.83490525,118940.0,118930.0,0.17118614]
[1754961387637,0.83810525,118940.0,118930.0,0.17118614]
[1754961387853,0.83810525,118940.0,118930.0,0.00302]
[1754961388202,0.83810525,118940.0,118930.0,0.17118614]
[1754961390981,0.83490525,118940.0,118930.0,0.17118614]
[1754961391442,0.69890525,118940.0,118930.0,0.17118614]
[1754961391636,0.83482525,118940.0,118930.0,0.17118614]
[1754961392093,0.52872325,118940.0,118930.0,0.68067928]
[1754961392290,0.38683685,118960.0,118950.0,0.16813787]
[1754961392460,0.6074701,118960.0,118950.0,0.00202]
[1754961392663,0.61081624,118960.0,118940.0,0.17126178]
[1754961392867,0.21860325,118950.0,118940.0,0.17126178]
[1754961393071,0.21860325,118950.0,118940.0,0.17328178]
[1754961395099,0.21856325,118950.0,118940.0,0.17328178]
[1754961395727,0.21856325,118950.0,118940.0,0.68277492]
[1754961395947,0.21856325,118950.0,118940.0,0.17328178]
[1754961397151,0.21856325,118950.0,118940.0,0.1817461]
[1754961397392,0.13584,118950.0,118940.0,0.17328178]
[1754961397672,0.20206614,118960.0,118950.0,0.16813787]
[1754961397877,0.42058939,118960.0,118950.0,0.17327787]
[1754961398625,0.00014614,118960.0,118950.0,0.27327787]
[1754961398846,0.00014614,118960.0,118950.0,0.29651787]
[1754961399065,0.00014614,118960.0,118950.0,0.80601101]
[1754961399286,0.00014614,118960.0,118950.0,0.29651787]
[1754961399499,0.00014614,118960.0,118950.0,0.80601101]
[1754961401599,0.00014614,118960.0,118950.0,0.80801101]
[1754961401843,0.00014614,118960.0,118950.0,0.81101101]
[1754961402312,0.00014614,118960.0,118950.0,0.30151787]
[1754961402517,0.00014614,118960.0,118950.0,0.35827787]
[1754961406744,0.00014614,118960.0,118950.0,0.86777101]
[1754961408286,0.00014614,118960.0,118950.0,0.35827787]
[1754961408512,0.00014614,118960.0,118950.0,0.86777101]
[1754961410449,0.00014614,118960.0,118950.0,0.35827787]
[1754961412682,0.00014614,118960.0,118950.0,0.86777101]
[1754961412889,0.00014614,118960.0,118950.0,1.08617426]
[1754961413093,0.00014614,118960.0,118950.0,1.10940426]
[1754961413494,0.00014614,118960.0,118950.0,1.13465026]
[1754961414363,0.00014614,118960.0,118950.0,0.62515712]
[1754961414567,0.00014614,118960.0,118950.0,1.13465026]
[1754961421981,0.00014614,118960.0,118950.0,1.68980999]
[1754961422607,0.446,119000.0,118990.0,0.16808135]
[1754961422823,0.13604867,119000.0,118990.0,0.17312135]
[1754961423058,0.13811867,119000.0,118990.0,0.17312135]
[1754961423261,0.13811867,119000.0,118990.0,0.17007135]
[1754961423804,0.13811867,119000.0,118990.0,0.25312135]
[1754961423805,0.00048867,119000.0,118990.0,0.25312135]
[1754961425111,0.00048867,119000.0,118990.0,0.25412135]
[1754961425347,0.30606627,119010.0,119000.0,0.16806722]
[1754961425560,0.30828281,119010.0,119000.0,0.16806722]
[1754961426342,0.14022966,119010.0,119000.0,0.16806722]
[1754961426558,0.14122966,119010.0,119000.0,0.16806722]
[1754961427296,0.14122966,119010.0,119000.0,0.16906722]
[1754961427786,0.14122966,119010.0,119000.0,0.17105722]
[1754961427787,0.13873654,119010.0,119000.0,0.17105722]
[1754961428006,0.13873654,119010.0,119000.0,0.68360036]
[1754961428007,0.00114654,119010.0,119000.0,0.68360036]
[1754961428216,0.00114654,119010.0,119000.0,0.78360036]
[1754961431129,0.00114654,119010.0,119000.0,0.27410722]
[1754961431887,0.00114654,119010.0,119000.0,0.78360036]
[1754961432306,0.00114654,119010.0,119000.0,1.43105275]
[1754961432521,0.00114654,119010.0,119000.0,1.45463275]
[1754961433181,0.00114654,119010.0,119000.0,0.94513961]
[1754961433374,0.00014654,119010.0,119000.0,1.47208177]
[1754961434036,0.00014654,119010.0,119000.0,0.96258863]
[1754961434243,0.00014654,119010.0,119000.0,0.96158863]
[1754961435001,0.00014654,119010.0,119000.0,0.96358863]
[1754961435610,0.00014654,119010.0,119000.0,1.04558863]
[1754961436387,0.01176771,119060.0,119050.0,0.16799664]
[1754961436613,0.00535649,119060.0,119050.0,0.16799664]
[1754961437425,0.68283215,119060.0,119050.0,0.16799664]
[1754961437627,0.25806226,119060.0,119040.0,0.16799885]
[1754961437935,0.64808314,119050.0,119040.0,0.22799885]
[1754961438139,0.00521,119050.0,119040.0,0.22799885]
[1754961438716,0.00202,119050.0,119040.0,0.23005885]
[1754961438866,0.08705974,119060.0,119040.0,0.23005885]
[1754961439092,0.00433649,119060.0,119050.0,0.17009659]
[1754961439288,0.00835649,119060.0,119050.0,0.16799664]
[1754961439864,0.00535649,119060.0,119050.0,0.16799664]
[1754961441120,0.13752649,119060.0,119050.0,0.27005664]
[1754961441296,0.13752649,119060.0,119050.0,0.27299664]
[1754961441504,0.00216649,119060.0,119050.0,0.27299664]
[1754961442503,0.13752649,119060.0,119050.0,0.27005664]
[1754961443093,0.14071649,119060.0,119050.0,0.26799664]
[1754961443715,0.09699002,119060.0,119050.0,0.26799664]
[1754961445397,0.77446568,119060.0,119050.0,0.26799664]
[1754961445628,0.16799664,119050.0,119030.0,0.1764261]
[1754961445847,0.67748978,119050.0,119040.0,0.12]
[1754961446058,0.67748978,119050.0,119030.0,0.1764261]
[1754961446059,0.17003075,119040.0,119030.0,0.16802486]
[1754961446266,0.81484389,119040.0,119030.0,0.11]
[1754961446468,0.81803389,119040.0,119030.0,0.135231]
[1754961446669,0.81803389,119040.0,119030.0,0.30325586]
[1754961447263,0.81803389,119040.0,119030.0,0.27802486]
[1754961448082,0.81803389,119040.0,119030.0,0.27902486]
[1754961448720,0.65002314,119040.0,119030.0,0.27902486]
[1754961448924,0.65002314,119040.0,119030.0,0.28102486]
[1754961449129,0.13734,119040.0,119030.0,0.28102486]
[1754961450813,0.13532,119050.0,119040.0,0.16801075]
[1754961451022,0.13734,119050.0,119040.0,0.17007075]
[1754961451466,0.00839912,119060.0,119050.0,0.16799664]
[1754961451696,0.1373,119060.0,119050.0,0.17005664]
[1754961451910,0.1373,119060.0,119050.0,0.17299664]
[1754961452144,0.00202,119060.0,119050.0,0.17299664]
[1754961452363,0.13528,119060.0,119050.0,0.29299664]
[1754961453684,0.001,119060.0,119050.0,0.29299664]
[1754961453900,0.13628,119060.0,119050.0,0.25299664]
[1754961455018,0.25545982,119080.0,119060.0,0.16797005]
[1754961455238,0.13528,119070.0,119060.0,0.17091005]
[1754961455454,0.1373,119070.0,119060.0,0.17297005]
[1754961456414,0.1383,119070.0,119060.0,0.17297005]
[1754961458432,0.1383,119070.0,119060.0,0.17003005]
[1754961458877,0.64779314,119070.0,119060.0,0.16797005]
[1754961459092,0.81576156,119070.0,119060.0,0.16797005]
[1754961460178,0.81893156,119070.0,119050.0,0.20162447]
[1754961460403,0.30943842,119070.0,119050.0,0.28639647]
[1754961460633,0.76336891,119060.0,119040.0,0.19323897]
[1754961460843,0.64671314,119050.0,119040.0,0.31338546]
[1754961461276,0.13722,119050.0,119040.0,0.31547546]
[1754961461668,0.64671314,119050.0,119040.0,0.31547546]
[1754961461911,0.64671314,119050.0,119040.0,0.39547546]
[1754961462946,0.64671314,119050.0,119040.0,0.39747546]
[1754961463193,0.64671314,119050.0,119040.0,0.39847546]
[1754961463393,0.64671314,119050.0,119040.0,0.32160546]
[1754961463866,0.13524,119050.0,119040.0,0.32160546]
[1754961466639,0.81668978,119050.0,119040.0,0.14837649]
[1754961466842,0.89941303,119050.0,119040.0,0.00314649]
[1754961467457,0.89941303,119050.0,119040.0,0.00214649]
[1754961468562,0.89941303,119050.0,119040.0,0.00014649]
[1754961472187,1.4913906,119050.0,119040.0,0.00014649]
[1754961472409,1.40890617,119050.0,119040.0,0.00014649]
[1754961472846,0.89941303,119050.0,119040.0,0.00014649]
[1754961473508,0.38991989,119050.0,119040.0,0.00014649]
[1754961473724,0.90141303,119050.0,119040.0,0.00014649]
[1754961474139,0.90241303,119050.0,119040.0,0.00014649]
[1754961474340,0.39291989,119050.0,119040.0,0.00014649]
[1754961474552,0.90241303,119050.0,119040.0,0.00014649]
[1754961483112,1.41190617,119050.0,119040.0,0.00014649]
[1754961484403,0.90241303,119050.0,119040.0,0.00014649]
[1754961484891,1.41190617,119050.0,119040.0,0.00014649]
[1754961486156,0.90241303,119050.0,119040.0,0.00014649]
[1754961486576,1.41190617,119050.0,119040.0,0.00014649]
[1754961486791,0.17099664,119050.0,119040.0,0.00536649]
[1754961486998,0.30607664,119050.0,119040.0,0.00536649]
[1754961487207,0.64757314,119050.0,119040.0,0.17547737]
[1754961487383,0.64757314,119050.0,119040.0,0.17337724]
[1754961487965,0.003,119050.0,119040.0,0.17337724]
[1754961488168,0.13608,119050.0,119040.0,0.17337724]
[1754961488370,0.13508,119050.0,119040.0,0.17337724]
[1754961488598,0.13708,119050.0,119040.0,0.17337724]
[1754961488807,0.13608,119050.0,119040.0,0.17337724]
[1754961489028,0.13508,119050.0,119040.0,0.17337724]
[1754961492528,0.67747682,119060.0,119050.0,0.16799664]
[1754961492813,0.67747682,119060.0,119050.0,0.17305664]
[1754961492814,0.89524007,119060.0,119050.0,0.17305664]
[1754961493050,0.08272325,119060.0,119050.0,0.17305664]
[1754961493209,0.68585998,119070.0,119060.0,0.16798252]
[1754961493424,0.65898906,119060.0,119050.0,0.17639647]
[1754961493685,0.65898906,119060.0,119050.0,0.30130647]
[1754961493686,0.79398906,119060.0,119050.0,0.30130647]
[1754961494279,0.65898906,119060.0,119050.0,0.30130647]
[1754961495472,0.65898906,119060.0,119050.0,0.30429647]
[1754961495667,0.65998906,119060.0,119050.0,0.31290333]
[1754961495871,0.65998906,119060.0,119050.0,0.30429647]
[1754961496082,0.65898906,119060.0,119050.0,0.30429647]
[1754961496769,0.65898906,119060.0,119050.0,0.31354596]
[1754961497504,0.65898906,119060.0,119050.0,0.33877296]
[1754961497909,0.65898906,119060.0,119050.0,0.33052347]
[1754961498096,0.65898906,119060.0,119050.0,0.33252347]
[1754961499971,0.65898906,119060.0,119050.0,0.32752347]
[1754961500574,0.65898906,119060.0,119050.0,0.46248347]
[1754961502962,0.65898906,119060.0,119050.0,0.99733739]
[1754961503161,0.65898906,119060.0,119050.0,1.08006064]
[1754961503364,0.65898906,119060.0,119050.0,1.09750966]
[1754961504391,0.65898906,119060.0,119050.0,1.17750966]
[1754961506310,0.20086441,119060.0,119050.0,1.21250966]
[1754961506532,0.20086441,119060.0,119050.0,0.70301652]
[1754961506742,0.20086441,119060.0,119050.0,1.21250966]
[1754961507780,0.20086441,119060.0,119050.0,0.70201652]
[1754961507990,0.20086441,119060.0,119050.0,1.21150966]
[1754961508190,0.20086441,119060.0,119050.0,1.20950966]
[1754961508429,0.20286441,119060.0,119050.0,1.22632966]
[1754961508890,0.20286441,119060.0,119050.0,0.55687652]
[1754961509097,0.20286441,119060.0,119050.0,0.6316175]
[1754961509312,0.20805441,119060.0,119050.0,0.6316175]
[1754961509523,0.20805441,119060.0,119050.0,0.64699652]
[1754961509950,0.20805441,119060.0,119050.0,0.64906652]
[1754961510774,0.20605441,119060.0,119050.0,0.64906652]
[1754961511030,0.20805441,119060.0,119050.0,0.64906652]
[1754961511494,0.20605441,119060.0,119050.0,0.64699652]
[1754961513249,0.20605441,119060.0,119050.0,0.64906652]
[1754961515068,0.20296441,119060.0,119050.0,0.64906652]
[1754961515694,0.20086441,119060.0,119050.0,0.64906652]
[1754961515905,0.20086441,119060.0,119050.0,1.16154966]
[1754961516578,0.20086441,119060.0,119050.0,1.18438966]
[1754961517616,0.20286441,119060.0,119050.0,1.18438966]
[1754961518637,0.20586441,119060.0,119050.0,1.18438966]
[1754961523210,0.20586441,119060.0,119050.0,1.20120966]
[1754961523425,0.20386441,119060.0,119050.0,1.20120966]
[1754961523865,0.20486441,119060.0,119050.0,1.20120966]
[1754961524659,0.20186441,119060.0,119050.0,1.20120966]
[1754961524844,0.20386441,119060.0,119050.0,1.20120966]
[1754961526330,0.20386441,119060.0,119050.0,1.17537966]
[1754961527031,0.20386441,119060.0,119050.0,1.17842966]
[1754961527235,0.20386441,119060.0,119050.0,0.66893652]
[1754961527469,0.20386441,119060.0,119050.0,1.04358966]
[1754961527703,0.20386441,119060.0,119050.0,1.17822966]
[1754961527884,0.20902441,119060.0,119050.0,1.17517966]
[1754961528131,0.20902441,119060.0,119050.0,0.66568652]
[1754961528343,0.20902441,119060.0,119050.0,1.17517966]
[1754961528560,0.20386441,119060.0,119050.0,1.17517966]
[1754961528779,0.20386441,119060.0,119050.0,1.17822966]
[1754961533787,0.20386441,119060.0,119050.0,1.17517966]
[1754961534129,0.20386441,119060.0,119050.0,1.26365966]
[1754961534334,0.20386441,119060.0,119050.0,1.17517966]
[1754961535779,0.20362178,119060.0,119050.0,1.17517966]
[1754961536703,0.20362178,119060.0,119050.0,1.17822966]
[1754961540744,0.20362178,119060.0,119050.0,0.66568652]
[1754961540940,0.20878178,119060.0,119050.0,1.17517966]
[1754961541179,0.20878178,119060.0,119050.0,1.17294966]
[1754961542723,0.20878178,119060.0,119050.0,0.51215652]
[1754961542939,0.71827492,119060.0,119050.0,0.60382672]
[1754961543145,0.71827492,119060.0,119050.0,0.52110347]
[1754961543359,0.20878178,119060.0,119050.0,0.52110347]
[1754961543785,0.20778178,119060.0,119050.0,0.52110347]
[1754961544412,0.20578178,119060.0,119050.0,0.52110347]
[1754961544616,0.20778178,119060.0,119050.0,0.52110347]
[1754961544836,0.20978178,119060.0,119050.0,0.52110347]
[1754961554788,0.20978178,119060.0,119050.0,0.54658018]
[1754961555154,0.20978178,119060.0,119050.0,0.54865018]
[1754961555771,0.20978178,119060.0,119050.0,0.54658018]
[1754961566464,0.20978178,119060.0,119050.0,0.52110347]
[1754961568761,0.20978178,119060.0,119050.0,0.52317347]
[1754961569615,0.20462178,119060.0,119050.0,1.1609105]
[1754961569844,0.20462178,119060.0,119050.0,1.2515209]
[1754961570523,0.20262178,119060.0,119050.0,1.2515209]
[1754961571024,0.20362178,119060.0,119050.0,1.2515209]
[1754961571470,0.20162178,119060.0,119050.0,1.2515209]
[1754961571683,0.20262178,119060.0,119050.0,1.2515209]
[1754961571898,0.20262178,119060.0,119050.0,1.30473847]
[1754961572496,0.20262178,119060.0,119050.0,1.2765209]
[1754961573073,0.20262178,119060.0,119050.0,1.2089105]
[1754961573303,0.20262178,119060.0,119050.0,1.2257305]
[1754961573519,0.20262178,119060.0,119050.0,0.74445493]
[1754961573726,0.20262178,119060.0,119050.0,0.71623736]
[1754961573866,0.20262178,119060.0,119050.0,1.2257305]
[1754961574058,0.20262178,119060.0,119050.0,0.71623736]
[1754961574259,0.20262178,119060.0,119050.0,1.2257305]
[1754961574955,0.20262178,119060.0,119050.0,1.1990605]
[1754961575891,0.20262178,119060.0,119050.0,1.1772905]
[1754961577147,0.20262178,119060.0,119050.0,1.2022905]
[1754961577983,0.20262178,119060.0,119050.0,1.1772905]
[1754961578185,0.20262178,119060.0,119050.0,1.1604705]
[1754961582188,0.20262178,119060.0,119050.0,0.65097736]
[1754961582399,0.20262178,119060.0,119050.0,1.1604705]
[1754961583862,0.20783178,119060.0,119050.0,1.1572405]
[1754961584333,0.20472178,119060.0,119050.0,1.1572405]
[1754961584763,0.20262178,119060.0,119050.0,1.1572405]
[1754961584996,0.20262178,119060.0,119050.0,1.1604605]
[1754961586518,0.20262178,119060.0,119050.0,1.25628847]
[1754961586722,0.20262178,119060.0,119050.0,1.27889847]
[1754961587201,0.00311,119090.0,119080.0,0.67744745]
[1754961587392,0.00311,119090.0,119080.0,0.92136745]
[1754961587393,0.00521,119090.0,119080.0,0.92136745]
[1754961588203,0.00521,119090.0,119080.0,1.0040907]
[1754961588328,0.005292,119090.0,119080.0,1.0040907]
[1754961588535,0.005292,119090.0,119080.0,1.0313107]
[1754961589598,0.005292,119090.0,119080.0,1.1113107]
[1754961589864,0.005292,119090.0,119080.0,1.1143107]
[1754961592409,0.005292,119090.0,119080.0,0.60481756]
[1754961593724,8.2e-05,119090.0,119080.0,1.13386972]
[1754961594412,0.005292,119090.0,119080.0,1.13386972]
[1754961594858,0.005292,119090.0,119080.0,0.62437658]
[1754961598180,0.005292,119090.0,119080.0,1.13386972]
[1754961598794,0.005292,119090.0,119080.0,0.60692756]
[1754961599004,0.005292,119090.0,119080.0,0.69540756]
[1754961599209,0.005292,119090.0,119080.0,0.60692756]
[1754961600519,0.002182,119090.0,119080.0,0.60692756]
[1754961600977,8.2e-05,119090.0,119080.0,0.60692756]
[1754961601192,8.2e-05,119090.0,119080.0,1.1164207]
[1754961602037,8.2e-05,119090.0,119080.0,1.1196407]
[1754961602907,8.2e-05,119090.0,119080.0,1.1164207]
[1754961603467,8.2e-05,119090.0,119080.0,0.60692756]
[1754961606224,0.002182,119090.0,119080.0,0.60692756]
[1754961606418,0.005292,119090.0,119080.0,0.60692756]
[1754961608615,0.005292,119090.0,119080.0,0.47089756]
[1754961608857,0.005292,119090.0,119080.0,0.60453756]
[1754961616562,0.005292,119090.0,119080.0,0.60658756]
[1754961616786,0.005292,119090.0,119080.0,1.17802994]
[1754961619385,0.005292,119090.0,119080.0,0.60658756]
[1754961620108,0.005292,119090.0,119080.0,1.17802994]
[1754961620538,0.005292,119090.0,119080.0,0.60658756]
[1754961620743,0.005292,119090.0,119080.0,1.17802994]
[1754961621385,0.005292,119090.0,119080.0,0.60658756]
[1754961621593,0.005292,119090.0,119080.0,0.60437756]
[1754961621594,0.57673438,119090.0,119080.0,0.60437756]
[1754961621796,0.57673438,119090.0,119080.0,0.59437756]
[1754961624677,0.57673438,119090.0,119080.0,0.51165431]
[1754961625351,0.71017438,119090.0,119080.0,0.37817431]
[1754961626813,0.64684179,119090.0,119080.0,0.37817431]
[1754961627350,0.64684179,119090.0,119080.0,0.51161431]
[1754961629887,0.814782,119090.0,119080.0,0.37817431]
[1754961630072,0.814782,119090.0,119080.0,0.23022]
[1754961630303,0.814782,119090.0,119080.0,0.37295431]
[1754961632601,0.814782,119090.0,119080.0,0.205]
[1754961634514,0.814782,119090.0,119080.0,0.37295431]
[1754961638254,0.83223102,119090.0,119080.0,0.205]
[1754961639599,0.83223102,119090.0,119080.0,0.37295431]
[1754961642502,0.32412123,119090.0,119080.0,0.37295431]
[1754961642706,0.83223102,119090.0,119080.0,0.37295431]
[1754961646219,0.83223102,119090.0,119080.0,0.205]
[1754961647279,0.83223102,119090.0,119080.0,0.37295431]
[1754961648518,0.66429081,119090.0,119080.0,0.37295431]
[1754961648719,0.72783161,119090.0,119080.0,0.37295431]
[1754961649056,0.89577182,119090.0,119080.0,0.37295431]
[1754961652904,0.89577182,119090.0,119080.0,0.205]
[1754961653915,0.89577182,119090.0,119080.0,0.230224]
[1754961660095,0.32412123,119090.0,119080.0,0.230224]
[1754961660332,0.89577182,119090.0,119080.0,0.230224]
[1754961660542,0.32412123,119090.0,119080.0,0.230224]
[1754961660795,0.89577182,119090.0,119080.0,0.230224]
[1754961663343,0.89577182,119090.0,119080.0,0.247044]
[1754961663551,0.89577182,119090.0,119080.0,0.230224]
[1754961664622,0.89577182,119090.0,119080.0,0.110224]
[1754961665997,1.62086722,119090.0,119080.0,0.110224]
[1754961666205,1.55014566,119090.0,119080.0,0.110224]
[1754961666617,1.55014566,119090.0,119080.0,0.085]
[1754961666998,1.55014566,119090.0,119080.0,0.083]
[1754961667420,0.97849507,119090.0,119080.0,0.083]
[1754961667615,1.55014566,119090.0,119080.0,0.083]
[1754961668061,1.55014566,119090.0,119080.0,0.08]
[1754961668204,1.55014566,119090.0,119080.0,0.082]
[1754961668414,1.55014566,119090.0,119080.0,0.083]
[1754961669428,0.97849507,119090.0,119080.0,0.083]
[1754961670578,1.55014566,119090.0,119080.0,0.083]
[1754961670845,1.63263009,119090.0,119080.0,0.083]
[1754961670983,1.55014566,119090.0,119080.0,0.083]
[1754961671578,1.55014566,119090.0,119080.0,0.082]
[1754961672015,1.55014566,119090.0,119080.0,0.08]
[1754961672414,1.55014566,119090.0,119080.0,0.081]
[1754961672617,1.55014566,119090.0,119080.0,0.001]
[1754961673345,1.63263009,119090.0,119080.0,0.001]
[1754961673508,1.55014566,119090.0,119080.0,0.001]
[1754961682702,1.57537366,119090.0,119080.0,0.001]
[1754961683941,2.02137366,119090.0,119080.0,0.001]
[1754961685280,0.18544308,119060.0,119040.0,0.17948128]
[1754961685487,0.18544308,119060.0,119050.0,0.00209]
[1754961685690,0.31816308,119060.0,119050.0,0.10209]
[1754961686726,0.88981367,119060.0,119050.0,0.10509]
[1754961687541,0.89839476,119060.0,119050.0,0.10509]
[1754961687744,0.89839476,119060.0,119050.0,0.10709]
[1754961688947,0.98628801,119060.0,119050.0,0.00709]
[1754961689404,0.98628801,119060.0,119050.0,0.005]
[1754961689641,1.5579386,119060.0,119050.0,0.005]
[1754961689848,0.98628801,119060.0,119050.0,0.005]
[1754961693595,0.16799664,119050.0,119040.0,0.19323919]
[1754961693765,0.87228723,119050.0,119040.0,0.30532919]
[1754961694173,0.87228723,119050.0,119040.0,0.13732]
[1754961694804,0.87236919,119050.0,119040.0,0.13932]
[1754961696228,0.3007186,119050.0,119040.0,0.14232]
[1754961696438,0.87236919,119050.0,119040.0,0.14232]
[1754961700637,0.87451919,119050.0,119040.0,0.14232]
[1754961703347,0.87451919,119050.0,119040.0,0.15914]
[1754961703556,0.87451919,119050.0,119040.0,0.14232]
[1754961704145,0.87750919,119050.0,119040.0,0.14232]
[1754961705318,1.54933205,119050.0,119040.0,0.005]
[1754961706353,1.54933205,119050.0,119040.0,0.003]
[1754961706566,0.16802486,119030.0,119020.0,0.025235]
[1754961706773,0.87215545,119030.0,119020.0,0.147345]
[1754961707600,0.87430545,119030.0,119020.0,0.147345]
[1754961707757,0.87729545,119030.0,119020.0,0.147345]
[1754961708792,0.87729545,119030.0,119020.0,0.150345]
[1754961709439,0.87729545,119030.0,119020.0,0.152345]
[1754961713701,0.89474447,119030.0,119020.0,0.152345]
[1754961713907,0.97746772,119030.0,119020.0,0.005]
[1754961714720,0.97746772,119030.0,119020.0,0.003]
[1754961714937,0.97746772,119030.0,119020.0,0.004]
[1754961715359,0.97746772,119030.0,119020.0,0.001]
[1754961715532,0.97746772,119030.0,119020.0,0.003]
[1754961718716,1.63160274,119030.0,119020.0,0.003]
[1754961718950,1.54911831,119030.0,119020.0,0.003]
[1754961719149,0.97746772,119030.0,119020.0,0.003]
[1754961719687,0.97746772,119030.0,119020.0,0.002]
[1754961719888,0.1680531,119010.0,119000.0,0.025239]
[1754961720094,0.1680531,119010.0,119000.0,0.147349]
[1754961720095,0.87202369,119010.0,119000.0,0.147349]
[1754961720767,0.87202369,119010.0,119000.0,0.31854622]
[1754961721151,0.87210561,119010.0,119000.0,0.31854622]
[1754961721893,0.87210561,119010.0,119000.0,0.32054622]
[1754961722570,0.87210561,119010.0,119000.0,0.32354622]
[1754961722779,0.80922272,119010.0,119000.0,0.32354622]
[1754961722984,0.80922272,119010.0,119000.0,0.32041622]
[1754961725009,0.30045502,119010.0,119000.0,0.32041622]
[1754961725408,0.80922272,119010.0,119000.0,0.32041622]
[1754961726029,0.30045502,119010.0,119000.0,0.32041622]
[1754961726229,0.80922272,119010.0,119000.0,0.32041622]
[1754961727852,0.13240192,119010.0,119000.0,0.32041622]
[1754961728020,0.64116962,119010.0,119000.0,0.32041622]
[1754961733208,0.64328962,119010.0,119000.0,0.32041622]
[1754961733382,0.64640962,119010.0,119000.0,0.32041622]
[1754961734617,0.66385864,119010.0,119000.0,0.150239]
[1754961734822,0.91463499,119010.0,119000.0,0.005]
[1754961735585,0.40586729,119010.0,119000.0,0.003]
[1754961735974,0.40586729,119010.0,118990.0,0.16807959]
[1754961735975,0.16806722,119000.0,118990.0,0.16807959]
[1754961736102,0.80895492,119000.0,118990.0,0.27018959]
[1754961737437,0.81419492,119000.0,118990.0,0.27018959]
[1754961737721,0.81419492,119000.0,118990.0,0.27218959]
[1754961737929,0.81419492,119000.0,118990.0,0.27007959]
[1754961738130,0.81419492,119000.0,118990.0,0.27307959]
[1754961738684,0.30542722,119000.0,118990.0,0.27307959]
[1754961738931,0.81419492,119000.0,118990.0,0.27307959]
[1754961739129,0.81419492,119000.0,118990.0,0.29832259]
[1754961740975,0.6461277,119000.0,118990.0,0.30043259]
[1754961741488,0.81419492,119000.0,118990.0,0.30043259]
[1754961744855,0.87787974,119000.0,118990.0,0.30043259]
[1754961745074,0.70981252,119000.0,118990.0,0.30043259]
[1754961753438,0.70961252,119000.0,118990.0,0.30043259]
[1754961755836,0.13716,119000.0,118990.0,0.29832259]
[1754961756041,0.70961252,119000.0,118990.0,0.29832259]
[1754961756354,8.192e-05,119010.0,119000.0,0.16806722]
[1754961756524,8.192e-05,119010.0,119000.0,0.99766974]
[1754961757454,8.192e-05,119010.0,119000.0,1.02290774]
[1754961758432,8.192e-05,119010.0,119000.0,1.02390774]
[1754961758634,8.192e-05,119010.0,119000.0,0.45145522]
[1754961758832,8.192e-05,119010.0,119000.0,0.45345522]
[1754961759862,8.192e-05,119010.0,119000.0,0.45029522]
[1754961762573,8.192e-05,119010.0,119000.0,0.31841522]
[1754961763736,0.00211192,119010.0,119000.0,0.31841522]
[1754961765545,8.192e-05,119010.0,119000.0,0.31841522]
[1754961767125,8.192e-05,119010.0,119000.0,0.32140522]
[1754961769550,8.192e-05,119010.0,119000.0,0.31841522]
[1754961777572,8.192e-05,119010.0,119000.0,0.32140522]
[1754961780541,8.192e-05,119010.0,119000.0,0.31841522]
[1754961780908,0.57233559,119010.0,119000.0,0.31841522]
[1754961781936,0.57436559,119010.0,119000.0,0.31841522]
[1754961782815,0.57733559,119010.0,119000.0,0.31630522]
[1754961786271,0.17313502,119010.0,119000.0,0.31630522]
[1754961786476,1.31764236,119010.0,119000.0,0.31630522]